bitfinex-derivatives/quotes_BTCF0:USTF0_20210707
["timestamp","ask_amount","ask_price","bid_price","bid_amount"]
[1625623806943,0.16990767,34119.0,34118.0,4.81226967]
[1625623807482,0.16990767,34119.0,34118.0,4.80777544]
[1625623807602,0.50953653,34119.0,34118.0,4.80777544]
[1625623807721,0.50953653,34119.0,34118.0,4.8122697]
[1625623807843,0.16990767,34119.0,34118.0,4.8122697]
[1625623808443,0.50963099,34120.0,34118.0,4.8122697]
[1625623808563,0.50963099,34120.0,34118.0,5.0747097]
[1625623808804,0.50963099,34120.0,34118.0,5.07021544]
[1625623809284,0.50981551,34119.0,34118.0,5.07021544]
[1625623809405,0.16999511,34119.0,34118.0,5.07021544]
[1625623809586,0.16999511,34119.0,34118.0,5.07470883]
[1625623809704,0.50984924,34119.0,34118.0,5.07470883]
[1625623810125,0.16999511,34119.0,34118.0,5.07470883]
[1625623810549,0.50991566,34119.0,34118.0,5.07470883]
[1625623810666,0.50991566,34119.0,34118.0,0.50750883]
[1625623810787,1.01919629,34121.0,34118.0,0.24506883]
[1625623811026,1.48787266,34123.0,34118.0,0.24506883]
[1625623811027,1.01925354,34120.0,34118.0,0.24057544]
[1625623811268,1.01925354,34120.0,34119.0,0.00449365]
[1625623813075,1.01982034,34121.0,34119.0,0.21676365]
[1625623813433,1.01982034,34121.0,34120.0,0.00449344]
[1625623814393,1.01982034,34121.0,34119.0,0.00449241]
[1625623814514,1.01982442,34120.0,34119.0,0.00449241]
[1625623816679,1.01982442,34120.0,34119.0,0.17660042]
[1625623816860,1.01982442,34120.0,34119.0,0.52081511]
[1625623817403,1.01982442,34120.0,34119.0,0.3487071]
[1625623817581,1.01661499,34121.0,34119.0,0.00449241]
[1625623817703,1.01661499,34121.0,34119.0,0.26134241]
[1625623817884,0.67797547,34121.0,34120.0,0.16092754]
[1625623818063,0.001,34122.0,34120.0,3.77597008]
[1625623818246,0.001,34122.0,34120.0,3.61953417]
[1625623818366,0.001,34122.0,34121.0,4.3079138]
[1625623818722,0.001,34122.0,34121.0,4.78906468]
[1625623819023,0.001,34122.0,34121.0,6.33822445]
[1625623826181,0.001,34122.0,34121.0,6.42732445]
[1625623826542,0.001,34122.0,34121.0,6.33822445]
[1625623827086,0.001,34122.0,34121.0,4.78906468]
[1625623827324,0.001,34124.0,34121.0,4.78906468]
[1625623827624,0.001,34124.0,34123.0,4.30307622]
[1625623828106,0.001,34124.0,34123.0,4.30756698]
[1625623828885,0.001,34124.0,34123.0,4.54814242]
[1625623832788,0.001,34124.0,34123.0,3.85965022]
[1625623836337,0.1721291,34129.0,34123.0,3.85965022]
[1625623836338,0.001,34126.0,34123.0,3.85965022]
[1625623836636,0.001,34126.0,34125.0,4.30398712]
[1625623837057,0.001,34126.0,34125.0,4.54908765]
[1625623839400,0.001,34126.0,34125.0,4.30851221]
[1625623840539,0.001,34126.0,34125.0,2.93123633]
[1625623840958,0.001,34126.0,34125.0,3.89353809]
[1625623842039,0.17118932,34126.0,34125.0,3.89353809]
[1625623842459,0.001,34126.0,34125.0,3.89353809]
[1625623843421,0.17119232,34126.0,34125.0,3.89353809]
[1625623843662,0.001,34126.0,34125.0,3.89353809]
[1625623845405,0.17019662,34127.0,34125.0,3.89353809]
[1625623845524,0.17019662,34127.0,34126.0,2.92756085]
[1625623845885,0.17019662,34127.0,34126.0,2.93208191]
[1625623847929,0.17019662,34127.0,34126.0,3.44868641]
[1625623848048,0.17019662,34127.0,34126.0,3.76531641]
[1625623848830,0.51120339,34128.0,34126.0,5.14285059]
[1625623848831,0.001,34128.0,34126.0,5.14285059]
[1625623849012,0.001,34128.0,34127.0,4.8212148]
[1625623849318,0.001,34128.0,34127.0,4.82572593]
[1625623850100,0.001,34128.0,34127.0,4.8343762]
[1625623851363,0.001,34128.0,34127.0,4.82572593]
[1625623851604,0.001,34128.0,34127.0,6.87490258]
[1625623851724,0.001,34128.0,34127.0,6.88355237]
[1625623851844,0.001,34128.0,34127.0,6.38355237]
[1625623852686,0.001,34128.0,34127.0,6.47125237]
[1625623852865,0.001,34128.0,34127.0,6.38355237]
[1625623853526,0.001,34128.0,34127.0,6.37490258]
[1625623854486,0.001,34128.0,34127.0,4.82572593]
[1625623857249,0.001,34130.0,34127.0,4.82572593]
[1625623857551,0.001,34130.0,34129.0,4.81856297]
[1625623857968,0.001,34130.0,34129.0,4.82307272]
[1625623859172,0.001,34130.0,34129.0,3.68691588]
[1625623859533,4.033,34130.0,34129.0,3.68691588]
[1625623859653,4.20324208,34130.0,34129.0,2.48227514]
[1625623860679,4.54316393,34130.0,34129.0,2.48227514]
[1625623861099,5.22329202,34130.0,34129.0,1.44972593]
[1625623861218,5.7044429,34130.0,34129.0,1.44972593]
[1625623862244,6.72465204,34130.0,34129.0,1.44972593]
[1625623862605,6.4840766,34130.0,34129.0,1.44972593]
[1625623862964,6.7118566,34130.0,34129.0,1.44972593]
[1625623863508,6.7118566,34130.0,34129.0,0.76135979]
[1625623864407,6.7118566,34130.0,34129.0,1.45012862]
[1625623864706,6.7118566,34130.0,34129.0,0.76135979]
[1625623864946,6.7118566,34130.0,34129.0,1.45012415]
[1625623866269,6.7108566,34130.0,34129.0,1.45012415]
[1625623868070,7.90103851,34130.0,34129.0,0.76135979]
[1625623868252,9.2607749,34130.0,34129.0,0.41739813]
[1625623871555,9.2607749,34130.0,34129.0,0.76248583]
[1625623871794,9.2607749,34130.0,34125.0,0.24157544]
[1625623871916,9.2607749,34130.0,34125.0,0.001]
[1625623872036,2.5465815,34126.0,34125.0,0.001]
[1625623872454,4.07351515,34126.0,34125.0,0.00550207]
[1625623872697,4.07351515,34126.0,34125.0,0.001]
[1625623872876,4.07351515,34126.0,34125.0,0.00550199]
[1625623873175,4.07351515,34126.0,34125.0,0.001]
[1625623873354,4.31409059,34126.0,34125.0,0.001]
[1625623873475,4.55466603,34126.0,34125.0,0.001]
[1625623876843,6.24894221,34126.0,34125.0,0.001]
[1625623877086,6.24894221,34126.0,34120.0,0.002]
[1625623877389,4.54337725,34121.0,34120.0,0.002]
[1625623877507,4.85726725,34121.0,34120.0,0.002]
[1625623877991,9.67986725,34121.0,34120.0,0.002]
[1625623878350,9.67986725,34121.0,34116.0,0.002]
[1625623878472,9.76886725,34121.0,34116.0,0.002]
[1625623878591,2.53743387,34117.0,34116.0,0.002]
[1625623879433,3.01858475,34117.0,34116.0,0.002]
[1625623884300,3.27130475,34117.0,34116.0,0.002]
[1625623886706,3.36020475,34117.0,34116.0,0.002]
[1625623887068,3.27130475,34117.0,34116.0,0.002]
[1625623887308,3.27130475,34117.0,34112.0,0.001]
[1625623887548,0.24057544,34113.0,34112.0,0.001]
[1625623888392,4.13377544,34113.0,34112.0,0.001]
[1625623888631,0.24057544,34113.0,34112.0,0.001]
[1625623892539,0.48769544,34113.0,34112.0,0.001]
[1625623896326,0.48769544,34113.0,34109.0,0.24057544]
[1625623897531,0.24057544,34110.0,34109.0,0.24057544]
[1625623898793,0.58135544,34110.0,34109.0,0.24057544]
[1625623900412,0.58135544,34110.0,34109.0,0.24507412]
[1625623902154,0.24057544,34110.0,34109.0,0.24507412]
[1625623909071,0.24057544,34110.0,34109.0,0.48437412]
[1625623909490,0.001,34112.0,34109.0,0.48437412]
[1625623909611,0.001,34112.0,34111.0,0.48115088]
[1625623910030,0.001,34112.0,34111.0,0.48564889]
[1625623913633,0.001,34112.0,34111.0,1.51582689]
[1625623914533,0.001,34112.0,34111.0,0.48564889]
[1625623915495,0.001,34112.0,34111.0,1.51624003]
[1625623917294,0.001,34114.0,34111.0,1.51624003]
[1625623917657,0.001,34114.0,34112.0,1.27648023]
[1625623917895,0.001,34114.0,34113.0,0.00449679]
[1625623923314,0.001,34114.0,34113.0,1.03664311]
[1625623925054,4.0511,34114.0,34113.0,1.03664311]
[1625623925656,4.0511,34114.0,34113.0,0.00449679]
[1625623926377,4.0501,34114.0,34113.0,0.00449679]
[1625623927280,4.0501,34114.0,34113.0,1.03776375]
[1625623927524,4.0501,34114.0,34113.0,0.00449679]
[1625623927944,5.06451761,34114.0,34113.0,0.00449679]
[1625623928066,5.40701761,34114.0,34113.0,0.00449679]
[1625623929875,5.40701761,34114.0,34113.0,1.03899587]
[1625623931257,6.59232411,34114.0,34113.0,1.03899587]
[1625623931859,7.27001445,34114.0,34113.0,1.7294531]
[1625623932819,7.27001445,34114.0,34113.0,2.93801401]
[1625623940456,7.28320262,34114.0,34113.0,2.93801401]
[1625623940574,8.63838183,34114.0,34113.0,1.7294531]
[1625623940874,8.62519366,34114.0,34113.0,0.69495402]
[1625623942139,8.62519366,34114.0,34113.0,1.73111704]
[1625623943287,8.63838293,34114.0,34113.0,0.69495402]
[1625623943705,8.63838293,34114.0,34113.0,0.00449679]
[1625623944848,8.63838293,34114.0,34113.0,0.34989551]
[1625623945088,8.63838293,34114.0,34113.0,0.00449679]
[1625623945751,8.63838293,34114.0,34113.0,0.34990212]
[1625623947433,8.63838293,34114.0,34113.0,0.00449679]
[1625623947793,9.36010925,34114.0,34113.0,0.00449679]
[1625623948578,9.36010925,34114.0,34113.0,0.69528746]
[1625623948818,9.34691998,34114.0,34113.0,0.69528746]
[1625623949361,9.36010944,34114.0,34113.0,0.69528746]
[1625623949659,9.34691998,34114.0,34113.0,0.69528746]
[1625623950623,9.36010944,34114.0,34113.0,0.69528746]
[1625623951403,9.36010944,34114.0,34113.0,0.00449679]
[1625623952305,9.36010944,34114.0,34113.0,0.34989785]
[1625623954109,9.36010944,34114.0,34113.0,0.00449679]
[1625623954411,9.36010944,34114.0,34113.0,0.34992383]
[1625623954652,10.88402774,34114.0,34113.0,0.09085496]
[1625623956272,10.88402774,34114.0,34113.0,0.43631108]
[1625623956752,10.88402774,34114.0,34113.0,0.34995291]
[1625623956992,10.88402774,34114.0,34113.0,0.43631585]
[1625623957294,10.88402774,34114.0,34113.0,0.34995291]
[1625623957472,10.88402774,34114.0,34113.0,0.43631534]
[1625623957652,10.88402774,34114.0,34113.0,0.34995291]
[1625623957955,10.88402774,34114.0,34113.0,0.09085903]
[1625623959276,10.88402774,34114.0,34113.0,0.00449679]
[1625623961680,10.88402774,34114.0,34112.0,0.00450499]
[1625623961801,5.75497968,34113.0,34112.0,0.00450499]
[1625623961919,5.75497968,34113.0,34111.0,0.43182985]
[1625623962038,6.26298189,34113.0,34111.0,0.43182985]
[1625623962160,6.26298189,34113.0,34112.0,0.00450496]
[1625623962279,5.11432632,34114.0,34112.0,0.00450496]
[1625623962459,6.27736617,34113.0,34112.0,0.00450496]
[1625623965886,6.27736617,34113.0,34111.0,0.09085856]
[1625623966126,0.01319045,34112.0,34111.0,0.08635355]
[1625623966248,6.27507663,34112.0,34111.0,0.08635355]
[1625623966427,6.27507663,34112.0,34111.0,0.09085852]
[1625623967210,6.27507663,34112.0,34111.0,0.00450497]
[1625623967450,6.27507663,34112.0,34110.0,0.00450522]
[1625623967630,6.25964445,34111.0,34110.0,0.00450522]
[1625623967750,6.27283538,34111.0,34110.0,0.00450522]
[1625623968352,6.27283538,34111.0,34110.0,0.09084613]
[1625623969134,4.75029688,34111.0,34110.0,0.09084613]
[1625623969313,4.73710595,34111.0,34110.0,1.21311563]
[1625623970094,5.0025598,34111.0,34110.0,0.3498173]
[1625623970274,6.52444676,34111.0,34110.0,0.09083465]
[1625623970516,6.52444676,34111.0,34110.0,0.00450522]
[1625623973398,6.52444676,34111.0,34109.0,0.001]
[1625623973520,6.52444676,34111.0,34105.0,0.08633479]
[1625623973699,6.52444676,34111.0,34104.0,0.08831146]
[1625623973821,6.2387458,34106.0,34104.0,0.002]
[1625623974062,6.97233938,34105.0,34104.0,0.002]
[1625623974300,8.65762446,34105.0,34102.0,0.002]
[1625623974601,6.57861124,34103.0,34102.0,0.002]
[1625623974782,8.26300939,34103.0,34097.0,0.003]
[1625623974900,8.27620669,34103.0,34097.0,0.003]
[1625623975020,6.23295384,34098.0,34097.0,0.003]
[1625623975269,4.71690732,34098.0,34097.0,0.003]
[1625623975440,4.73010456,34098.0,34097.0,0.00750689]
[1625623975562,4.73010456,34098.0,34093.0,0.34501984]
[1625623975682,3.5274,34095.0,34092.0,0.004]
[1625623975802,3.87027,34095.0,34092.0,0.004]
[1625623975924,2.8570996,34093.0,34092.0,0.004]
[1625623976041,5.42754731,34093.0,34092.0,0.004]
[1625623977245,0.72172632,34093.0,34092.0,0.004]
[1625623977366,0.72172632,34093.0,34092.0,0.001]
[1625623984096,0.72172632,34093.0,34092.0,0.24157544]
[1625623986258,1.05704367,34093.0,34092.0,0.24157544]
[1625623986379,1.05704367,34093.0,34092.0,0.24057544]
[1625623986498,1.55989148,34093.0,34092.0,0.24057544]
[1625623986738,1.22457413,34093.0,34092.0,0.24057544]
[1625623987101,1.55975568,34093.0,34092.0,0.24057544]
[1625623987341,1.89459389,34093.0,34092.0,0.24057544]
[1625623987581,1.22457413,34093.0,34092.0,0.24057544]
[1625623987821,1.05694646,34093.0,34092.0,0.24057544]
[1625623988062,0.72172632,34093.0,34092.0,0.24057544]
[1625623988243,1.05691123,34093.0,34092.0,0.24057544]
[1625623988363,1.55960483,34093.0,34092.0,0.24057544]
[1625623988965,1.05691123,34093.0,34092.0,0.24057544]
[1625623990350,1.55942714,34093.0,34092.0,0.24057544]
[1625623990465,1.82649714,34093.0,34092.0,0.24057544]
[1625623990588,1.49131223,34093.0,34092.0,0.24057544]
[1625623990829,1.82631187,34093.0,34092.0,0.24057544]
[1625623991309,1.32379596,34093.0,34092.0,0.24057544]
[1625623991488,1.05672596,34093.0,34092.0,0.24057544]
[1625623992029,1.87147159,34093.0,34092.0,0.24057544]
[1625623993111,1.36908596,34093.0,34092.0,0.24057544]
[1625623994136,1.05672596,34093.0,34092.0,0.24057544]
[1625623994376,0.72172632,34093.0,34092.0,0.50201544]
[1625623994616,0.48115088,34093.0,34092.0,0.50201544]
[1625623996179,0.48115088,34093.0,34092.0,0.24057544]
[1625623996299,0.73562088,34093.0,34092.0,0.24057544]
[1625623997019,0.73562088,34093.0,34087.0,0.85964331]
[1625623997382,0.73562088,34093.0,34087.0,0.001]
[1625623997383,1.07055367,34093.0,34087.0,0.001]
[1625623998042,0.33480129,34092.0,34087.0,0.001]
[1625623998222,0.24057544,34088.0,34087.0,0.001]
[1625623999424,2.41210948,34088.0,34087.0,0.001]
[1625623999967,4.08043764,34088.0,34087.0,0.001]
[1625624000085,3.58043764,34088.0,34087.0,0.001]
[1625624000206,7.15556257,34088.0,34082.0,0.002]
[1625624000325,7.24346257,34088.0,34082.0,0.002]
[1625624000566,3.33363356,34083.0,34071.0,0.34362309]
[1625624000685,0.5,34082.0,34071.0,0.34362309]
[1625624000806,0.83281448,34075.0,34067.0,0.85911468]
[1625624000986,1.05254448,34075.0,34067.0,0.85911468]
[1625624001168,1.05254448,34075.0,34063.0,1.443336]
[1625624001169,4.1843,34068.0,34064.0,0.34336227]
[1625624001288,4.4605,34068.0,34064.0,0.34336227]
[1625624001406,4.4605,34068.0,34065.0,0.00449924]
[1625624001766,4.4605,34068.0,34061.0,0.34338387]
[1625624001946,4.4605,34068.0,34060.0,0.85846471]
[1625624002187,0.72172632,34061.0,34060.0,0.85846471]
[1625624002307,0.96608632,34061.0,34060.0,0.85846471]
[1625624002428,0.96608632,34061.0,34060.0,0.34338891]
[1625624002849,0.96608632,34061.0,34060.0,0.34788833]
[1625624002969,0.96608632,34061.0,34060.0,0.00449942]
[1625624003328,0.96608632,34061.0,34059.0,0.00449952]
[1625624003449,0.96608632,34061.0,34059.0,0.34750961]
[1625624003692,0.96608632,34061.0,34059.0,0.86201267]
[1625624003813,0.72172632,34061.0,34059.0,0.86201267]
[1625624003932,0.72172632,34061.0,34060.0,0.86198349]
[1625624004052,0.72172632,34061.0,34060.0,1.15573349]
[1625624004172,0.72172632,34061.0,34060.0,1.73928451]
[1625624004532,0.72172632,34061.0,34060.0,2.76818025]
[1625624004652,0.72172632,34061.0,34060.0,3.96852552]
[1625624004892,0.72172632,34061.0,34060.0,2.76818025]
[1625624005072,0.72172632,34061.0,34060.0,7.85528025]
[1625624005194,0.72172632,34061.0,34060.0,9.0548704]
[1625624005794,0.33230011,34078.0,34060.0,9.0548704]
[1625624005913,0.057,34077.0,34060.0,9.0548704]
[1625624006035,0.057,34077.0,34065.0,0.34273347]
[1625624006213,0.24057544,34072.0,34068.0,0.24057544]
[1625624006334,0.24057544,34072.0,34070.0,0.26359]
[1625624007295,0.003,34071.0,34068.0,0.24057544]
[1625624007897,0.30801,34071.0,34068.0,0.24057544]
[1625624008197,0.24057544,34069.0,34068.0,0.24057544]
[1625624009818,0.24057544,34069.0,34061.0,0.34242718]
[1625624009938,0.24057544,34069.0,34061.0,0.85606895]
[1625624010119,0.24057544,34069.0,34061.0,4.81976895]
[1625624010300,0.002,34066.0,34064.0,0.24057544]
[1625624012281,0.24057544,34065.0,34064.0,0.24057544]
[1625624014985,0.24057544,34065.0,34064.0,0.58727648]
[1625624015524,0.002,34066.0,34064.0,0.58727648]
[1625624015646,0.002,34066.0,34064.0,0.88601648]
[1625624015886,0.002,34066.0,34064.0,0.88152256]
[1625624016007,0.002,34066.0,34065.0,0.34216051]
[1625624016126,0.002,34066.0,34065.0,0.34665436]
[1625624016251,0.003,34071.0,34065.0,0.24506929]
[1625624016369,0.002,34070.0,34065.0,0.24506929]
[1625624016489,0.002,34070.0,34065.0,0.58727613]
[1625624016612,0.002,34070.0,34065.0,0.58278228]
[1625624017578,0.002,34070.0,34065.0,0.24057544]
[1625624018238,0.002,34070.0,34069.0,0.24057544]
[1625624019262,0.24057544,34072.0,34069.0,0.24057544]
[1625624019380,0.002,34070.0,34069.0,0.24057544]
[1625624020948,4.8153,34070.0,34064.0,0.34231848]
[1625624021067,5.04469,34070.0,34063.0,0.3562962]
[1625624021188,0.5,34069.0,34058.0,0.001]
[1625624021424,0.32928987,34060.0,34058.0,0.001]
[1625624021613,0.057,34059.0,34044.0,0.34252445]
[1625624021724,1.53648931,34059.0,34039.0,0.34258959]
[1625624021845,2.68697624,34059.0,34039.0,0.34258959]
[1625624021966,2.68697624,34059.0,34050.0,4.6082]
[1625624022148,2.68697624,34059.0,34039.0,0.34258959]
[1625624022266,0.24057544,34049.0,34048.0,0.24057544]
[1625624022387,0.47274544,34049.0,34039.0,0.17108843]
[1625624022506,0.47274544,34049.0,34038.0,0.75388226]
[1625624022687,0.47274544,34049.0,34038.0,0.24057544]
[1625624022930,0.47274544,34049.0,34039.0,0.51338679]
[1625624023049,0.47274544,34049.0,34039.0,0.51788422]
[1625624023289,0.47274544,34049.0,34040.0,0.00449733]
[1625624023471,0.23217,34049.0,34040.0,0.51801135]
[1625624023589,0.24057544,34056.0,34040.0,0.51801135]
[1625624023709,0.98545692,34060.0,34040.0,0.51801135]
[1625624023710,0.49361312,34060.0,34043.0,0.17115669]
[1625624023894,0.49361312,34060.0,34043.0,0.97342669]
[1625624024010,0.49366966,34064.0,34045.0,0.51310448]
[1625624024131,0.49450521,34065.0,34047.0,0.17103127]
[1625624024132,0.16568502,34065.0,34047.0,0.17103127]
[1625624024253,0.16568502,34065.0,34064.0,0.24057544]
[1625624024371,0.001,34065.0,34064.0,0.24057544]
[1625624025332,0.16481985,34066.0,34064.0,0.24057544]
[1625624025511,0.49413486,34067.0,34064.0,0.24057544]
[1625624025812,0.16483334,34067.0,34064.0,0.24057544]
[1625624026292,0.24057544,34065.0,34064.0,0.24057544]
[1625624028700,0.24057544,34065.0,34060.0,0.24057544]
[1625624028820,0.73460588,34065.0,34060.0,0.24057544]
[1625624029062,4.2145,34062.0,34060.0,0.24057544]
[1625624029302,4.70843756,34062.0,34060.0,0.24057544]
[1625624029841,0.49333578,34061.0,34060.0,0.24057544]
[1625624030263,0.82188682,34061.0,34060.0,0.24057544]
[1625624030382,1.06246226,34061.0,34060.0,0.24057544]
[1625624030562,0.73390142,34061.0,34060.0,0.24057544]
[1625624030990,0.24057544,34061.0,34060.0,0.24057544]
[1625624031164,0.73390796,34061.0,34060.0,0.24057544]
[1625624031884,0.24057544,34061.0,34060.0,0.24057544]
[1625624032365,0.40494532,34061.0,34060.0,0.24057544]
[1625624033148,0.73346257,34061.0,34060.0,0.24057544]
[1625624033328,0.73346947,34061.0,34060.0,0.24057544]
[1625624033747,1.06199405,34061.0,34057.0,0.24057544]
[1625624033988,0.49280892,34060.0,34057.0,0.24057544]
[1625624034109,0.74994892,34060.0,34057.0,0.24057544]
[1625624034349,0.002,34054.0,34051.0,0.24057544]
[1625624036453,0.52361544,34052.0,34051.0,0.24057544]
[1625624044995,0.24057544,34054.0,34051.0,0.52191544]
[1625624045113,0.24057544,34058.0,34051.0,0.52191544]
[1625624045232,0.19649802,34079.0,34051.0,0.52191544]
[1625624045233,0.40564082,34061.0,34051.0,0.52191544]
[1625624045353,0.16506538,34061.0,34051.0,0.52191544]
[1625624045534,0.001,34061.0,34051.0,0.52191544]
[1625624045954,0.001,34061.0,34052.0,0.00449695]
[1625624046432,0.002,34057.0,34052.0,0.00449695]
[1625624048358,0.002,34057.0,34056.0,0.24057544]
[1625624050159,0.002,34057.0,34056.0,0.24507141]
[1625624050401,0.24257544,34057.0,34056.0,0.24507141]
[1625624053468,0.24257544,34057.0,34056.0,0.48408141]
[1625624053589,0.002,34057.0,34056.0,0.48408141]
[1625624058336,0.001,34057.0,34056.0,0.48408141]
[1625624058456,0.001,34057.0,34056.0,1.24014607]
[1625624058756,0.001,34057.0,34056.0,1.58379726]
[1625624058935,0.001,34057.0,34056.0,1.24013778]
[1625624059178,0.001,34057.0,34056.0,2.27205784]
[1625624059656,0.98736855,34069.0,34056.0,2.27205784]
[1625624059657,0.49399698,34069.0,34056.0,3.47587147]
[1625624059778,0.49399698,34069.0,34066.0,4.3295]
[1625624059898,0.49424687,34070.0,34066.0,4.66552]
[1625624060077,0.98832905,34071.0,34066.0,4.66552]
[1625624060078,0.49411423,34069.0,34066.0,4.66552]
[1625624060318,0.49414274,34068.0,34066.0,4.66552]
[1625624060438,0.49414274,34068.0,34067.0,0.72172632]
[1625624061278,0.49714274,34068.0,34067.0,0.72172632]
[1625624062781,0.49714274,34068.0,34067.0,0.72142632]
[1625624064283,0.49414274,34068.0,34067.0,0.72142632]
[1625624064403,0.49714274,34068.0,34067.0,0.72142632]
[1625624064525,0.003,34068.0,34067.0,0.72142632]
[1625624064644,1.15182531,34072.0,34067.0,0.72142632]
[1625624064824,0.004,34073.0,34067.0,0.72142632]
[1625624064825,0.49413497,34071.0,34067.0,0.72142632]
[1625624065064,0.004,34073.0,34068.0,0.0044946]
[1625624065784,0.004,34073.0,34068.0,1.2085214]
[1625624066084,0.004,34073.0,34069.0,0.00449387]
[1625624066564,0.004,34073.0,34072.0,0.48115088]
[1625624067286,0.001,34073.0,34072.0,0.48115088]
[1625624074204,0.001,34073.0,34072.0,0.76544088]
[1625624074625,0.001,34073.0,34072.0,2.47229564]
[1625624074863,0.001,34073.0,34072.0,3.84637472]
[1625624075464,0.001,34073.0,34072.0,5.39205624]
[1625624075584,0.002,34078.0,34072.0,5.39205624]
[1625624075824,0.002,34078.0,34072.0,5.48075624]
[1625624075944,0.002,34078.0,34077.0,2.57608348]
[1625624076063,0.002,34078.0,34077.0,3.07608348]
[1625624076184,0.002,34078.0,34077.0,3.08057647]
[1625624076364,0.002,34079.0,34077.0,3.08057647]
[1625624076604,0.002,34079.0,34078.0,0.48115088]
[1625624076729,0.002,34079.0,34078.0,3.0544465]
[1625624076968,0.002,34079.0,34078.0,3.05893952]
[1625624077509,0.002,34079.0,34078.0,3.0544465]
[1625624078589,0.002,34079.0,34078.0,1.68202217]
[1625624079491,0.002,34079.0,34078.0,0.48115088]
[1625624083826,0.23775,34079.0,34078.0,0.48115088]
[1625624085336,0.23575,34079.0,34078.0,0.48115088]
[1625624087794,0.001,34080.0,34078.0,0.72643088]
[1625624088640,0.001,34080.0,34079.0,0.00449314]
[1625624088820,0.001,34080.0,34079.0,0.24506858]
[1625624089963,0.001,34080.0,34079.0,0.24057544]
[1625624094168,0.28131,34080.0,34079.0,0.24057544]
[1625624097353,0.28031,34080.0,34079.0,0.24057544]
[1625624099279,0.001,34081.0,34079.0,0.24057544]
[1625624100600,0.001,34081.0,34079.0,0.51504544]
[1625624100901,0.001,34081.0,34080.0,0.00449706]
[1625624102823,0.001,34081.0,34079.0,0.24057544]
[1625624105110,0.24157544,34081.0,34079.0,0.24057544]
[1625624106251,0.24057544,34081.0,34079.0,0.24057544]
[1625624109555,0.89807517,34081.0,34079.0,0.24057544]
[1625624111416,0.65792901,34080.0,34079.0,0.24057544]
[1625624111716,0.65792901,34080.0,34079.0,0.24507159]
[1625624114542,1.6460924,34080.0,34079.0,0.24507159]
[1625624118387,2.80093364,34080.0,34079.0,0.24507159]
[1625624118869,1.6460924,34080.0,34079.0,0.24507159]
[1625624118987,1.65933149,34080.0,34079.0,0.24507159]
[1625624119171,4.37213286,34080.0,34079.0,0.24507159]
[1625624119410,8.34573286,34080.0,34079.0,0.24507159]
[1625624120374,8.34573286,34080.0,34079.0,0.24057544]
[1625624120613,8.34573286,34080.0,34079.0,0.24507054]
[1625624120853,4.37213286,34080.0,34079.0,0.24507054]
[1625624123257,4.37213286,34080.0,34079.0,0.48564598]
[1625624132935,4.13155742,34080.0,34079.0,0.48564598]
[1625624133055,4.13155742,34080.0,34079.0,0.74686598]
[1625624133297,2.81304791,34080.0,34079.0,0.98744142]
[1625624133596,1.65933149,34080.0,34079.0,1.67800012]
[1625624133715,1.6460924,34080.0,34079.0,1.67800012]
[1625624134077,1.6460924,34080.0,34079.0,2.71382282]
[1625624134315,1.6460924,34080.0,34079.0,1.67800012]
[1625624136357,2.80761915,34080.0,34079.0,1.67800012]
[1625624137319,2.80761915,34080.0,34079.0,0.98744142]
[1625624137438,2.80761915,34080.0,34079.0,0.72622142]
[1625624138280,2.80761915,34080.0,34079.0,1.41716102]
[1625624138820,2.80761915,34080.0,34079.0,2.45412746]
[1625624139421,2.80761915,34080.0,34079.0,2.72170746]
[1625624139783,1.6460924,34080.0,34079.0,3.93151434]
[1625624140026,0.001,34081.0,34079.0,5.31402263]
[1625624140265,0.001,34081.0,34080.0,4.3201314]
[1625624140386,0.001,34081.0,34080.0,4.32462729]
[1625624140625,0.001,34081.0,34080.0,5.88022103]
[1625624141466,0.001,34081.0,34080.0,4.32462729]
[1625624142548,0.001,34081.0,34080.0,5.87986621]
[1625624144415,0.23313556,34085.0,34080.0,5.87986621]
[1625624144594,0.00231995,34086.0,34080.0,6.37986621]
[1625624144772,1.33479689,34090.0,34080.0,6.37986621]
[1625624144773,1.00212009,34090.0,34084.0,3.62719677]
[1625624144952,0.95012009,34090.0,34084.0,4.12719677]
[1625624145072,0.95012009,34090.0,34085.0,0.00449497]
[1625624145193,0.95012009,34090.0,34085.0,0.21714497]
[1625624145316,1.17211227,34091.0,34090.0,0.72172632]
[1625624145317,0.003,34091.0,34090.0,0.72172632]
[1625624145557,0.003,34091.0,34090.0,4.86650259]
[1625624145674,0.003,34091.0,34090.0,4.87099726]
[1625624145796,0.003,34091.0,34090.0,3.31670616]
[1625624146578,0.003,34091.0,34090.0,4.86894797]
[1625624146816,0.003,34091.0,34090.0,3.31670616]
[1625624148077,0.003,34091.0,34090.0,3.81670616]
[1625624148259,0.003,34092.0,34090.0,3.81670616]
[1625624148379,0.003,34092.0,34091.0,2.58513651]
[1625624148557,0.003,34092.0,34091.0,2.58963101]
[1625624149279,0.003,34092.0,34091.0,1.21089154]
[1625624149397,0.003,34092.0,34091.0,1.44697248]
[1625624150300,0.003,34092.0,34091.0,0.24057544]
[1625624154812,0.003,34092.0,34091.0,0.75684005]
[1625624156679,0.003,34092.0,34091.0,0.24057544]
[1625624157280,0.001,34093.0,34091.0,0.24057544]
[1625624157460,0.08445297,34093.0,34091.0,0.24057544]
[1625624157878,0.08445297,34093.0,34091.0,0.32656862]
[1625624157998,0.001,34093.0,34091.0,0.32656862]
[1625624158238,0.0844556,34093.0,34091.0,0.32656862]
[1625624158478,0.0844556,34093.0,34091.0,0.24057544]
[1625624158779,0.40518219,34092.0,34091.0,0.24057544]
[1625624159381,0.32176,34092.0,34091.0,0.24057544]
[1625624160223,0.08348388,34092.0,34091.0,0.24057544]
[1625624160343,0.001,34093.0,34091.0,0.3265559]
[1625624161847,0.001,34093.0,34091.0,0.24057544]
[1625624161848,0.08457313,34093.0,34091.0,0.24057544]
[1625624162990,0.08356483,34092.0,34091.0,0.24057544]
[1625624163170,0.08456687,34093.0,34091.0,0.24057544]
[1625624164794,0.08372489,34092.0,34091.0,0.24057544]
[1625624165695,0.50251379,34093.0,34091.0,0.24057544]
[1625624165874,0.50126589,34092.0,34091.0,0.24057544]
[1625624168340,0.50137259,34093.0,34091.0,0.24507143]
[1625624168645,0.50137259,34093.0,34091.0,0.24057544]
[1625624168761,0.001,34094.0,34091.0,0.24057544]
[1625624168762,0.50152341,34092.0,34091.0,0.24057544]
[1625624169183,0.50152341,34092.0,34091.0,0.24507153]
[1625624169425,0.50164024,34093.0,34091.0,0.24507153]